fUST/lending_fUST_20240417
["ID","MTS","AMOUNT","RATE_DAILY","PERIOD"]
[322820622,1713364238557,-3476.22583262,9.886e-05,2]
[322820624,1713364238567,-1934.55003292,9.887e-05,2]
[322820626,1713364238576,-10.00095172,9.887e-05,2]
[322820627,1713364238587,-1538.74197259,9.887e-05,2]
[322820628,1713364238605,-57540.56544519,9.887e-05,2]
[322820629,1713364238614,-154.86062544,9.999e-05,2]
[322820630,1713364238624,-154.85857417,9.999e-05,2]
[322820631,1713364238633,-154.84515485,9.999e-05,2]
[322820632,1713364238642,-767.11419247,0.0001,2]
[322820633,1713364238651,-1310.15475715,0.0001,2]
[322820634,1713364238661,-154.87609912,0.00010013,2]
[322820636,1713364238670,-882.33479028,0.0001006,2]
[322820638,1713364238679,-608.10496208,0.00010061,2]
[322820641,1713364238705,-4083.02004584,0.00010061,2]
[322820643,1713364238715,-449.51079077,0.00010063,2]
[322820645,1713364238724,-157.4220682,0.00010063,2]
[322820647,1713364238733,-291.44293903,0.00010063,2]
[322820649,1713364238743,-361.42917162,0.00010063,2]
[322820651,1713364238752,-888.05887897,0.00010063,2]
[322820653,1713364238762,-9280.4772047,0.00010063,2]
[322820655,1713364238776,-1487.92182193,0.00010063,2]
[322820656,1713364238787,-154.93802479,0.00010063,2]
[322820658,1713364238797,-154.93802479,0.00010063,2]
[322820661,1713364238806,-283.57371716,0.00010064,2]
[322820662,1713364238815,-186.4695643,0.00010313,2]
[322820663,1713364238824,-420.0,0.00010874,2]
[322820664,1713364238834,-7441.02668335,0.00011074,2]
[322820665,1713364238845,-413.99873145,0.00011074,2]
[322820666,1713364238854,-587.0,0.00011961,2]
[322820667,1713364238864,-3001.83376503,0.000125,2]
[322820668,1713364238872,-1023.71491784,0.000129,2]
[322820669,1713364238882,-250.0,0.00013,2]
[322820670,1713364238892,-823.0,0.00013157,2]
[322820671,1713364238902,-965.39339888,0.0001346,2]
[322820672,1713364238911,-155.07619699,0.00013562,2]
[322820673,1713364238920,-1764.262054,0.00013699,2]
[322820674,1713364238930,-1943.2804486,0.00013699,2]
[322820675,1713364238940,-926.63477986,0.00014,2]
[322820676,1713364238950,-303.0,0.00014473,2]
[322820677,1713364238959,-162.80570735,0.000149,2]
[322820678,1713364238971,-15.34596171,0.000149,2]
[322820679,1713364238981,-178.15166904,0.000149,2]
[322820680,1713364238992,-178.15166904,0.000149,2]
[322820681,1713364239001,-2096.98803724,0.00015,2]
[322820682,1713364239010,-156.84586358,0.00015,2]
[322820683,1713364239019,-154.87609912,0.00015,2]
[322820684,1713364239034,-937.89373734,0.00015,2]
[322820685,1713364239043,-1166.33256333,0.000176,2]
[322820686,1713364239053,-602.61216035,0.000185,2]
[322820687,1713364239064,-1210.01522413,0.000189,2]
[322820688,1713364239074,-188.96976676,0.0001897,2]
[322820689,1713364239083,-154.95351395,0.00019,2]
[322820690,1713364239092,-1000.0,0.00019,2]
[322820691,1713364239101,-500.0,0.00019178,2]
[322820692,1713364239110,-500.0,0.00019178,2]
[322820693,1713364239120,-501.47616122,0.00019178,2]
[322820694,1713364239129,-500.0,0.00019178,2]
[322820695,1713364239139,-500.0,0.00019178,2]
[322820696,1713364239147,-197.49038207,0.00019178,2]
[322820697,1713364239157,-500.0,0.00019178,2]
[322820698,1713364239166,-500.0,0.00019178,2]
[322820699,1713364239175,-500.0,0.00019178,2]
[322820700,1713364239184,-501.74700307,0.00019178,2]
[322820701,1713364239194,-500.0,0.00019178,2]
[322820702,1713364239204,-500.0,0.00019178,2]
[322820703,1713364239213,-269.18705409,0.00019178,2]
[322820704,1713364239223,-500.0,0.00019178,2]
[322820705,1713364239232,-201.14879608,0.00019178,2]
[322820706,1713364239241,-252.21591526,0.00019178,2]
[322820707,1713364239250,-300.49234117,0.00019178,2]
[322820708,1713364239260,-171.802599,0.00019178,2]
[322820709,1713364239269,-174.32691,0.00019178,2]
[322820710,1713364239282,-163.585749,0.00019178,2]
[322820711,1713364239291,-168.022678,0.00019178,2]
[322820712,1713364239300,-1023.71491781,0.00019557,2]
[322820713,1713364239309,-14756.45578509,0.0002,2]
[322820714,1713364239319,-155.05174481,0.0002,2]
[322820715,1713364239328,-309.53569955,0.0002,2]
[322820716,1713364239338,-277.60171443,0.0002,2]
[322820717,1713364239347,-811.56689381,0.0002,2]
[322820718,1713364239468,-523.80732363,0.0002,4]
[322820719,1713364239479,-688.59429255,0.0002,2]
[322820720,1713364239489,-237.92490957,0.0002,2]
[322820721,1713364239498,-406.49971412,0.0002,2]
[322820722,1713364239508,-144.74771433,0.0002,2]
[322821016,1713364243862,-376.28727093,0.0002,2]
[322821017,1713364243871,-400.0,0.0002,2]
[322821018,1713364243881,-250.0,0.0002,2]
[322821019,1713364244002,-154.87609912,0.0002,2]
[322821020,1713364244012,-284.97852371,0.0002,2]
[322821021,1713364244021,-151.0,0.0002,2]
[322821023,1713364244034,-151.0,0.0002,2]
[322821025,1713364244043,-87.35810624,0.0002,2]
[322821144,1713364246817,-155.07619699,0.00019799,2]
[322821146,1713364246826,-155.04638389,0.00019999,2]
[322821148,1713364246835,-1089.26071762,0.00019999,2]
[322821150,1713364246844,-2584.94589356,0.00019999,2]
[322821152,1713364246853,-63.64189376,0.0002,2]
[322821154,1713364246862,-153.64075486,0.0002,2]
[322821156,1713364246871,-200.0,0.0002,2]
[322821158,1713364246880,-1624.84100991,0.00020035,2]
[322821258,1713364892318,920.0,0.000252,30]
[322821396,1713365432759,-163.98644275,0.0001168,2]
[322821398,1713365432768,-116.11606461,0.0001168,2]
[322821400,1713365432780,-650.99812786,0.0001168,2]
[322821402,1713365432789,-2125.76560283,0.00011681,2]
[322821404,1713365432799,-408.43488901,0.00011681,2]
[322821406,1713365432808,-329.35470215,0.00011682,2]
[322821408,1713365432817,-1089.26071762,0.00011682,2]
[322821410,1713365432827,-674.28551114,0.00011683,2]
[322821412,1713365432837,-1310.15475715,0.00011683,2]
[322821414,1713365432846,-203.92427323,0.00011683,2]
[322821415,1713365432856,-300.0,0.00011683,2]
[322821417,1713365432866,-548.5453527,0.00011687,2]
[322821419,1713365432875,-1304.3249274,0.00011699,2]
[322821421,1713365432884,-204.58284997,0.0001269,2]
[322821423,1713365432894,-66369.6234357,0.00012691,2]
[322821467,1713365438731,-13496.8002042,0.0001269,2]
[322821469,1713365438743,-1825.89,0.0001269,2]
[322822264,1713365447655,-305.0,0.00011421,2]
[322822658,1713365865272,214.0904511,9.29e-05,2]
[322822666,1713365960534,7567.31913127,9.28e-05,2]
[322822676,1713366134924,19000.0,8.268e-05,2]
[322822677,1713366134956,5900.0,8.268e-05,2]
[322822680,1713366249911,1554.7265166,8.256e-05,2]
[322822694,1713366486807,6090.5432338,8.232e-05,2]
[322822751,1713366631889,-408.43488901,9.212e-05,2]
[322822753,1713366631898,-203.92427323,9.212e-05,2]
[322822755,1713366631908,-474.19997224,9.213e-05,2]
[322822757,1713366631917,-205.83283873,9.213e-05,2]
[322822758,1713366631926,-1089.26071762,9.214e-05,2]
[322822759,1713366631935,-519.26461656,9.214e-05,2]
[322822760,1713366631944,-469.12528489,9.215e-05,2]
[322822761,1713366631953,-467.87279548,9.216e-05,2]
[322822762,1713366631967,-351.3027513,9.216e-05,2]
[322822763,1713366631976,-2125.76560283,9.216e-05,2]
[322822765,1713366631985,-300.0,9.216e-05,2]
[322822767,1713366631994,-211.83113783,9.216e-05,2]
[322822769,1713366632003,-300.0,9.216e-05,2]
[322822771,1713366632012,-7858.55367278,9.217e-05,2]
[322822773,1713366632021,-163.98644275,9.217e-05,2]
[322822774,1713366632030,-38097.69578304,9.217e-05,2]
[322822818,1713366637963,-154.84515485,9.211e-05,2]
[322822819,1713366637972,-329.35470215,9.211e-05,2]
[322822820,1713366637981,-539.22318272,9.211e-05,2]
[322822821,1713366637991,-2584.94589356,9.211e-05,2]
[322822822,1713366638002,-20991.61258646,9.217e-05,2]
[322822823,1713366638012,-72389.02048931,9.218e-05,2]
[322822824,1713366638022,-6921.1263496,9.24e-05,2]
[322822825,1713366638033,-6921.1263496,9.24e-05,2]
[322822826,1713366638043,-263.85039072,9.241e-05,2]
[322822827,1713366638053,-154.85857417,9.256e-05,2]
[322822828,1713366638063,-767.11419247,0.0001,2]
[322822829,1713366638074,-420.0,0.00010138,2]
[322822830,1713366638084,-369.0,0.00010138,2]
[322822831,1713366638094,-511.36714466,0.00010303,2]
[322822832,1713366638104,-882.7275178,0.00010306,2]
[322822833,1713366638113,-386.0783205,0.00010959,2]
[322822834,1713366638122,-587.0,0.00011151,2]
[322822835,1713366638132,-154.86062544,0.00011421,2]
[322822836,1713366638141,-823.0,0.00012266,2]
[322822837,1713366638151,-1101.56395792,0.00012684,2]
[322822838,1713366638161,-1933.58973004,0.00012686,2]
[322822839,1713366638170,-565.55887897,0.00012686,2]
[322822840,1713366638180,-154.87609912,0.00012686,2]
[322822841,1713366638189,-154.95351395,0.00012688,2]
[322822842,1713366638198,-154.86062544,0.00012699,2]
[322822843,1713366638207,-764.0,0.00013493,2]
[322822844,1713366638221,-200.0,0.00013699,2]
[322822845,1713366638230,-200.0,0.00013699,2]
[322822846,1713366638239,-243.79793,0.00013699,2]
[322822847,1713366638247,-173.042897,0.00013699,2]
[322822848,1713366638256,-151.0,0.00013699,2]
[322822849,1713366638265,-35485.875288,0.00013699,2]
[322822850,1713366638275,-882.131027,0.00013699,2]
[322822851,1713366638285,-151.0,0.00013699,2]
[322822852,1713366638295,-807.425621,0.00013699,2]
[322822853,1713366638305,-807.425621,0.00013699,2]
[322822854,1713366638315,-751.006691,0.00013699,2]
[322822855,1713366638324,-151.0,0.00013699,2]
[322822856,1713366638335,-751.006691,0.00013699,2]
[322822857,1713366638344,-151.0,0.00013699,2]
[322822858,1713366638352,-153.105285,0.00013699,2]
[322822859,1713366638363,-204.357032,0.00013699,2]
[322822860,1713366638371,-204.357032,0.00013699,2]
[322822861,1713366638381,-200.0,0.00013699,2]
[322822862,1713366638390,-200.0,0.00013699,2]
[322822863,1713366638399,-151.0,0.00013699,2]
[322822864,1713366638408,-292.75121,0.00013699,2]
[322822865,1713366638418,-807.425621,0.00013718,2]
[322822866,1713366638427,-807.425621,0.00013718,2]
[322822867,1713366638437,-751.006691,0.00013718,2]
[322822868,1713366638446,-151.0,0.00013718,2]
[322822869,1713366638455,-751.006691,0.00013718,2]
[322822870,1713366638467,-151.0,0.00013718,2]
[322822871,1713366638476,-204.357032,0.00013718,2]
[322822872,1713366638485,-204.357032,0.00013718,2]
[322822873,1713366638493,-200.0,0.00013718,2]
[322822874,1713366638502,-200.0,0.00013718,2]
[322822875,1713366638511,-262.619822,0.00013718,2]
[322822876,1713366638520,-151.0,0.00013718,2]
[322822877,1713366638529,-811.085273,0.00013718,2]
[322822878,1713366638538,-811.085273,0.00013718,2]
[322822879,1713366638548,-250.08278,0.00013718,2]
[322822880,1713366638557,-533.830692,0.00013718,2]
[322822881,1713366638566,-533.830692,0.00013718,2]
[322822882,1713366638575,-151.0,0.00013718,2]
[322822883,1713366638584,-151.0,0.00013718,2]
[322822884,1713366638593,-151.0,0.00013718,2]
[322822885,1713366638602,-1014.340817,0.00013718,2]
[322822886,1713366638611,-1014.340817,0.00013718,2]
[322822887,1713366638620,-151.0,0.00013718,2]
[322822888,1713366638630,-151.0,0.00013718,2]
[322822889,1713366638639,-926.63477986,0.00014,2]
[322822890,1713366638649,-158.23147999,0.00015,2]
[322822891,1713366638661,-2096.98803724,0.00015,2]
[322822892,1713366638670,-937.89373734,0.00015,2]
[322822893,1713366638680,-156.84586358,0.00015,2]
[322822894,1713366638689,-154.8915759,0.00015,2]
[322822895,1713366638699,-151.0,0.00015,2]
[322822896,1713366638708,-580.22150395,0.00018,2]
[322822897,1713366638722,-602.61216035,0.000185,2]
[322822898,1713366638731,-151.0,0.000189,2]
[322822899,1713366638741,-811.085273,0.000189,2]
[322822900,1713366638750,-811.085273,0.000189,2]
[322822901,1713366638760,-2117.92684631,0.000189,2]
[322822902,1713366638769,-533.830692,0.000189,2]
[322822903,1713366638778,-533.830692,0.000189,2]
[322822904,1713366638787,-188.96976676,0.0001897,2]
[322822905,1713366638796,-1000.0,0.00019,2]
[322822906,1713366638805,-390.0,0.00019,2]
[322822907,1713366638814,-200.0,0.00019,2]
[322822908,1713366638823,-200.0,0.00019,2]
[322822909,1713366638832,-389.08300034,0.00019178,2]
[322822910,1713366638842,-322.3782494,0.00019178,2]
[322822911,1713366638852,-313.25050349,0.00019178,2]
[322822912,1713366638862,-382.04329023,0.00019178,2]
[322822913,1713366638872,-163.585749,0.00019178,2]
[322822914,1713366638881,-168.022678,0.00019178,2]
[322822915,1713366638891,-174.32691,0.00019178,2]
[322822916,1713366638900,-155.65685323,0.00019834,2]
[322822917,1713366638909,-406.49971412,0.0002,2]
[322822918,1713366638918,-400.0,0.0002,2]
[322822919,1713366638928,-521.03498526,0.0002,2]
[322822920,1713366638936,-688.59429255,0.0002,2]
[322822921,1713366638945,-10102.36070328,0.0002,2]
[322822922,1713366638954,-807.425621,0.0002,2]
[322822923,1713366638969,-807.425621,0.0002,2]
[322822924,1713366638978,-751.006691,0.0002,2]
[322822925,1713366638987,-151.0,0.0002,2]
[322822926,1713366638996,-751.006691,0.0002,2]
[322822927,1713366639005,-151.0,0.0002,2]
[322822928,1713366639014,-204.357032,0.0002,2]
[322822929,1713366639023,-204.357032,0.0002,2]
[322822930,1713366639033,-200.0,0.0002,2]
[322822931,1713366639042,-200.0,0.0002,2]
[322822932,1713366639051,-200.0,0.0002,2]
[322822933,1713366639061,-151.0,0.0002,2]
[322822934,1713366639070,-811.085273,0.0002,2]
[322822935,1713366639080,-811.085273,0.0002,2]
[322822936,1713366639090,-533.830692,0.0002,2]
[322822937,1713366639099,-533.830692,0.0002,2]
[322822938,1713366639108,-151.0,0.0002,2]
[322822939,1713366639117,-151.0,0.0002,2]
[322822940,1713366639127,-151.0,0.0002,2]
[322822941,1713366639138,-1014.340817,0.0002,2]
[322822942,1713366639147,-1014.340817,0.0002,2]
[322822943,1713366639156,-1014.340817,0.0002,2]
[322822944,1713366639165,-1014.340817,0.0002,2]
[322822945,1713366639175,-151.0,0.0002,2]
[322822946,1713366639184,-151.0,0.0002,2]
[322822947,1713366639194,-151.0,0.0002,2]
[322822948,1713366639203,-151.0,0.0002,2]
[322822949,1713366639218,-275.669414,0.0002,2]
[322822950,1713366639227,-608.10496208,0.00020031,2]
[322822951,1713366639237,-563.35636859,0.00020034,2]
[322822952,1713366639247,-995.0910056,0.00020035,2]
[322822953,1713366639256,-168.00504498,0.00020035,2]
[322822954,1713366639265,-15210.21413881,0.00020035,2]
[322822956,1713366639275,-807.425621,0.00020035,2]
[322822957,1713366639284,-807.425621,0.00020035,2]
[322822958,1713366639293,-751.006691,0.00020035,2]
[322822959,1713366639303,-151.0,0.00020035,2]
[322822960,1713366639312,-751.006691,0.00020035,2]
[322822961,1713366639321,-269.164131,0.00020035,2]
[322822962,1713366639331,-151.0,0.00020035,2]
[322822963,1713366639340,-151.0,0.00020035,2]
[322822964,1713366639350,-204.357032,0.00020035,2]
[322822965,1713366639359,-204.357032,0.00020035,2]
[322822966,1713366639369,-204.357032,0.00020035,2]
[322822967,1713366639378,-204.357032,0.00020035,2]
[322822977,1713366639485,-200.0,0.00020035,2]
[322822979,1713366639495,-200.0,0.00020035,2]
[322822980,1713366639504,-151.0,0.00020035,2]
[322822981,1713366639514,-811.085273,0.00020035,2]
[322822982,1713366639523,-811.085273,0.00020035,2]
[322822983,1713366639533,-533.830692,0.00020035,2]
[322822984,1713366639543,-533.830692,0.00020035,2]
[322822987,1713366639552,-151.0,0.00020035,2]
[322822989,1713366639561,-151.0,0.00020035,2]
[322822991,1713366639570,-151.0,0.00020035,2]
[322822992,1713366639579,-1014.340817,0.00020035,2]
[322822993,1713366639588,-1014.340817,0.00020035,2]
[322822994,1713366639598,-151.0,0.00020035,2]
[322822995,1713366639606,-285.833423,0.00020035,2]
[322822996,1713366639616,-2297.22955653,0.000205,5]
[322822997,1713366639625,-882.131027,0.00020548,2]
[322822998,1713366639635,-537.84309983,0.00021,7]
[322822999,1713366639645,-10000.0,0.00021,5]
[322823000,1713366639655,-1214.71286302,0.00021,2]
[322823001,1713366639664,-807.425621,0.00021,2]
[322823002,1713366639675,-807.425621,0.00021,2]
[322823003,1713366639686,-751.006691,0.00021,2]
[322823004,1713366639696,-751.006691,0.00021,2]
[322823005,1713366639705,-151.0,0.00021,2]
[322823006,1713366639719,-204.357032,0.00021,2]
[322823007,1713366639728,-204.357032,0.00021,2]
[322823008,1713366639738,-200.0,0.00021,2]
[322823009,1713366639747,-200.0,0.00021,2]
[322823010,1713366639757,-167.904788,0.00021,2]
[322823011,1713366639766,-811.085273,0.00021,2]
[322823012,1713366639775,-811.085273,0.00021,2]
[322823013,1713366639785,-533.830692,0.00021,2]
[322823014,1713366639794,-533.830692,0.00021,2]
[322823015,1713366639803,-151.0,0.00021,2]
[322823016,1713366639814,-270.698346,0.00021,2]
[322823017,1713366639824,-151.0,0.00021,2]
[322823018,1713366639835,-1014.340817,0.00021,2]
[322823019,1713366639846,-1014.340817,0.00021,2]
[322823020,1713366639857,-151.0,0.00021,2]
[322823021,1713366639868,-210.078,0.000217,2]
[322823022,1713366639877,-417.0,0.000217,2]
[322823023,1713366639886,-500.0,0.00022,2]
[322823024,1713366639895,-158.857458,0.00022,2]
[322823025,1713366639904,-852.3841388,0.00022405,2]
[322823026,1713366639914,-243.24834116,0.00023,2]
[322823027,1713366639925,-300.0,0.00023491,2]
[322823028,1713366639935,-631.61920694,0.00023525,2]
[322823029,1713366639946,-807.425621,0.00023525,2]
[322823030,1713366639957,-807.425621,0.00023525,2]
[322823031,1713366639969,-751.006691,0.00023525,2]
[322823032,1713366639978,-751.006691,0.00023525,2]
[322823033,1713366639988,-151.0,0.00023525,2]
[322823034,1713366639997,-204.357032,0.00023525,2]
[322823035,1713366640006,-204.357032,0.00023525,2]
[322823036,1713366640015,-200.0,0.00023525,2]
[322823037,1713366640024,-200.0,0.00023525,2]
[322823038,1713366640033,-811.085273,0.00023525,2]
[322823039,1713366640043,-811.085273,0.00023525,2]
[322823040,1713366640053,-533.830692,0.00023525,2]
[322823041,1713366640063,-533.830692,0.00023525,2]
[322823042,1713366640074,-151.0,0.00023525,2]
[322823043,1713366640083,-198.99024,0.00023525,2]
[322823044,1713366640093,-1014.340817,0.00023525,2]
[322823045,1713366640103,-1014.340817,0.00023525,2]
[322823046,1713366640113,-151.0,0.00023525,2]
[322823047,1713366640122,-2117.92684631,0.000239,2]
[322823048,1713366640132,-168268.63442019,0.00024,2]
[322823049,1713366640142,-4127.91630136,0.00024267,2]
[322823050,1713366640152,-150.84915085,0.00024624,2]
[322823051,1713366640161,-1000.0,0.00024629,2]
[322823052,1713366640171,-205.5969494,0.00024658,2]
[322823053,1713366640182,-1000.0,0.0002466,2]
[322823054,1713366640191,-417.0,0.000247,2]
[322823055,1713366640202,-1501.899039,0.000247,2]
[322823056,1713366640214,-620.58096035,0.00024701,2]
[322823057,1713366640224,-300.0,0.00024805,2]
[322823058,1713366640234,-200.0,0.00024805,2]
[322823059,1713366640244,-200.0,0.00024805,2]
[322823060,1713366640254,-811.085273,0.00024805,2]
[322823061,1713366640265,-811.085273,0.00024805,2]
[322823062,1713366640275,-533.830692,0.00024805,2]
[322823063,1713366640284,-533.830692,0.00024805,2]
[322823064,1713366640295,-151.0,0.00024805,2]
[322823065,1713366640304,-1014.340817,0.00024805,2]
[322823066,1713366640314,-1014.340817,0.00024805,2]
[322823067,1713366640324,-151.0,0.00024805,2]
[322823068,1713366640333,-807.425621,0.00024849,2]
[322823069,1713366640344,-807.425621,0.00024849,2]
[322823070,1713366640354,-751.006691,0.00024849,2]
[322823071,1713366640364,-751.006691,0.00024849,2]
[322823072,1713366640375,-151.0,0.00024849,2]
[322823073,1713366640385,-204.357032,0.00024849,2]
[322823074,1713366640395,-204.357032,0.00024849,2]
[322823075,1713366640405,-36786.28021769,0.00025,2]
[322823076,1713366640416,-1000.0,0.00025,2]
[322823077,1713366640426,-1000.0,0.00025,2]
[322823078,1713366640436,-1000.0,0.00025,2]
[322823079,1713366640446,-1000.0,0.00025,2]
[322823080,1713366640456,-1000.0,0.00025,2]
[322823081,1713366640469,-1000.0,0.00025,2]
[322823082,1713366640480,-1000.0,0.00025,2]
[322823083,1713366640490,-1000.0,0.00025,2]
[322823084,1713366640500,-1000.0,0.00025,2]
[322823085,1713366640512,-1000.0,0.00025,2]
[322823086,1713366640523,-1000.0,0.00025,2]
[322823087,1713366640534,-1000.0,0.00025,2]
[322823088,1713366640545,-1000.0,0.00025,2]
[322823089,1713366640556,-1000.0,0.00025,2]
[322823090,1713366640568,-1000.0,0.00025,2]
[322823091,1713366640579,-1000.0,0.00025,2]
[322823092,1713366640590,-1000.0,0.00025,2]
[322823093,1713366640602,-1000.0,0.00025,2]
[322823094,1713366640614,-1000.0,0.00025,2]
[322823095,1713366640625,-1000.0,0.00025,2]
[322823096,1713366640635,-1000.0,0.00025,2]
[322823097,1713366640646,-1000.0,0.00025,2]
[322823098,1713366640656,-1000.0,0.00025,2]
[322823099,1713366640670,-1000.0,0.00025,2]
[322823100,1713366640680,-866.0,0.00025,2]
[322823101,1713366640692,-807.425621,0.00025,2]
[322823102,1713366640703,-807.425621,0.00025,2]
[322823103,1713366640716,-807.425621,0.00025,2]
[322823104,1713366640726,-807.425621,0.00025,2]
[322823105,1713366640736,-807.425621,0.00025,2]
[322823106,1713366640746,-807.425614,0.00025,2]
[322823107,1713366640758,-751.006691,0.00025,2]
[322823108,1713366640768,-751.006691,0.00025,2]
[322823109,1713366640778,-751.006691,0.00025,2]
[322823110,1713366640788,-751.006691,0.00025,2]
[322823111,1713366640799,-751.006691,0.00025,2]
[322823112,1713366640809,-751.006692,0.00025,2]
[322823113,1713366640818,-151.0,0.00025,2]
[322823114,1713366640828,-151.0,0.00025,2]
[322823115,1713366640839,-204.357032,0.00025,2]
[322823116,1713366640849,-204.357032,0.00025,2]
[322823117,1713366640860,-204.357032,0.00025,2]
[322823118,1713366640871,-204.35704,0.00025,2]
[322823119,1713366640882,-200.0,0.00025,2]
[322823120,1713366640893,-200.0,0.00025,2]
[322823121,1713366640903,-811.085273,0.00025,2]
[322823122,1713366640913,-811.085273,0.00025,2]
[322823123,1713366640922,-811.085273,0.00025,2]
[322823124,1713366640931,-811.085273,0.00025,2]
[322823126,1713366640946,-811.085273,0.00025,2]
[322823128,1713366640957,-811.08527129,0.00025,2]
[322823130,1713366640971,-533.830692,0.00025,2]
[322823131,1713366640983,-533.830692,0.00025,2]
[322823133,1713366640995,-533.830692,0.00025,2]
[322823135,1713366641011,-533.830692,0.00025,2]
[322823137,1713366641022,-533.830692,0.00025,2]
[322823139,1713366641033,-533.830682,0.00025,2]
[322823141,1713366641044,-151.0,0.00025,2]
[322823142,1713366641054,-151.0,0.00025,2]
[322823143,1713366641065,-151.0,0.00025,2]
[322823144,1713366641076,-1014.340817,0.00025,2]
[322823145,1713366641086,-1014.340817,0.00025,2]
[322823146,1713366641097,-1014.340817,0.00025,2]
[322823147,1713366641106,-1014.340817,0.00025,2]
[322823148,1713366641116,-1014.340817,0.00025,2]
[322823149,1713366641126,-1014.340815,0.00025,2]
[322823150,1713366641136,-151.0,0.00025,2]
[322823151,1713366641146,-151.0,0.00025,2]
[322823152,1713366641157,-151.0,0.00025,2]
[322823153,1713366641167,-251.73509559,0.00025196,2]
[322823154,1713366641177,-185.53125817,0.00025197,2]
[322823155,1713366641187,-156.07914574,0.00025198,2]
[322823156,1713366641196,-161.63140866,0.00025198,2]
[322823157,1713366641206,-299.82752621,0.00025198,2]
[322823158,1713366641216,-270.01479417,0.00025198,2]
[322823159,1713366641227,-154.87609912,0.000252,2]
[322823160,1713366641237,-118241.88698838,0.000252,7]
[322823161,1713366641246,-154.87609912,0.000252,2]
[322823162,1713366641256,-5151.0,0.000252,2]
[322823163,1713366641268,-3062.64298016,0.000252,2]
[322823164,1713366641277,-284.97852371,0.000252,2]
[322823165,1713366641287,-151.0,0.000252,2]
[322823166,1713366641296,-1000.0,0.000252,2]
[322823167,1713366641305,-586.0,0.000256,2]
[322823168,1713366641315,-224.48736224,0.00027,2]
[322823169,1713366641325,-332.07459253,0.00027,2]
[322823170,1713366641334,-8507.18295185,0.00027,2]
[322823171,1713366641344,-3789.80446124,0.0002726,2]
[322823172,1713366641434,-150.84915085,0.0002736,2]
[322823173,1713366641444,-250.24063936,0.0002736,2]
[322823174,1713366641454,-783.63141595,0.00027368,2]
[322823175,1713366641467,-500.0,0.00027397,2]
[322823176,1713366641476,-500.0,0.00027397,2]
[322823177,1713366641485,-500.0,0.00027397,2]
[322823178,1713366641494,-500.0,0.00027397,2]
[322823179,1713366641503,-500.0,0.00027397,2]
[322823180,1713366641513,-580.77260462,0.00027397,2]
[322823181,1713366641522,-500.0,0.00027397,2]
[322823182,1713366641532,-168.99398684,0.00027397,2]
[322823183,1713366641542,-500.0,0.00027397,2]
[322823184,1713366641551,-324.970306,0.00027397,2]
[322823185,1713366641560,-164.729236,0.00027397,2]
[322823186,1713366641570,-160.941151,0.00027397,2]
[322823187,1713366641579,-409.676525,0.00027397,2]
[322823188,1713366641588,-166.666666,0.00027397,2]
[322823189,1713366641599,-1000.0,0.00027397,2]
[322823190,1713366641610,-417.0,0.000277,2]
[322823191,1713366641619,-301.6983017,0.00027819,4]
[322823192,1713366641629,-150.95011599,0.00027999,2]
[322823193,1713366641639,-80000.0,0.00028,2]
[322823194,1713366641648,-292.35872206,0.00028,2]
[322823195,1713366641658,-166.666666,0.00028038,2]
[322823196,1713366641671,-603.3966034,0.00028287,7]
[322823197,1713366641682,-5000.0,0.0002834,2]
[322823198,1713366641692,-166.666666,0.00028679,2]